bitfinex/quotes_BTCUSD_20230906
["timestamp","ask_amount","ask_price","bid_price","bid_amount"]
[1694021088766,0.0216,25622.0,25621.0,3.26653754]
[1694021088991,0.0216,25622.0,25621.0,3.69999754]
[1694021089211,0.0216,25622.0,25621.0,3.69741754]
[1694021089381,0.0216,25622.0,25621.0,3.69909754]
[1694021089590,0.0216,25622.0,25621.0,3.85155754]
[1694021089969,0.05060837,25627.0,25622.0,0.12]
[1694021090131,0.0196,25630.0,25627.0,0.4718]
[1694021090363,0.0196,25630.0,25627.0,3.67438138]
[1694021090477,0.0196,25630.0,25627.0,3.94666138]
[1694021090664,0.0196,25630.0,25627.0,5.72354054]
[1694021091038,0.24241842,25630.0,25627.0,5.31538054]
[1694021091200,0.24241842,25630.0,25627.0,4.35881454]
[1694021091420,0.28131346,25628.0,25627.0,3.02792327]
[1694021091631,0.28131346,25628.0,25622.0,0.003]
[1694021091632,0.04,25625.0,25622.0,0.003]
[1694021091935,0.11855067,25624.0,25623.0,0.38664527]
[1694021092101,0.08,25625.0,25623.0,0.38664527]
[1694021092181,0.97905667,25625.0,25622.0,0.003]
[1694021092388,0.97905667,25625.0,25622.0,0.38964527]
[1694021092602,0.08,25625.0,25623.0,0.38664527]
[1694021093262,0.164,25626.0,25623.0,1.16719227]
[1694021093474,0.164,25626.0,25623.0,1.94774027]
[1694021093668,0.204,25626.0,25623.0,2.72828827]
[1694021093939,0.264,25626.0,25623.0,1.16719227]
[1694021094094,0.264,25626.0,25623.0,1.17119327]
[1694021094095,1.044462,25626.0,25623.0,1.17119327]
[1694021094330,0.22105899,25624.0,25623.0,0.004]
[1694021094780,1.78209499,25624.0,25623.0,0.004]
[1694021095151,0.0131498,25625.0,25623.0,0.004]
[1694021095574,0.0131498,25625.0,25622.0,1.561132]
[1694021095774,0.0131498,25625.0,25623.0,0.38664527]
[1694021096184,0.0131498,25625.0,25623.0,1.94773427]
[1694021096386,0.0131498,25625.0,25623.0,1.94873427]
[1694021096640,0.1,25622.0,25618.0,0.780674]
[1694021096840,0.11855067,25622.0,25619.0,2.02634227]
[1694021097001,0.1562,25622.0,25620.0,0.06714]
[1694021097200,0.1562,25622.0,25621.0,1.94785127]
[1694021097832,0.1562,25622.0,25621.0,0.38664527]
[1694021098504,0.1562,25622.0,25621.0,2.72847227]
[1694021099202,0.1562,25622.0,25621.0,2.81133227]
[1694021099402,0.1562,25622.0,25621.0,2.81055227]
[1694021099634,0.1562,25622.0,25621.0,3.1805892]
[1694021099857,0.001,25622.0,25621.0,3.3866892]
[1694021100061,0.001,25622.0,25621.0,3.3557292]
[1694021100271,0.001,25622.0,25621.0,3.6286492]
[1694021100471,0.40481922,25626.0,25621.0,3.09215227]
[1694021100645,0.27487011,25625.0,25621.0,3.15813038]
[1694021100853,0.1619,25625.0,25621.0,3.00347227]
[1694021101059,0.17508789,25625.0,25621.0,3.07877227]
[1694021101265,0.17508789,25625.0,25621.0,3.62661565]
[1694021101477,0.17508789,25625.0,25622.0,0.09]
[1694021101839,0.17508789,25625.0,25623.0,3.50883727]
[1694021102325,0.17508789,25625.0,25624.0,0.06564]
[1694021102480,0.17508789,25625.0,25624.0,2.80019927]
[1694021102697,0.18808789,25625.0,25624.0,3.11952851]
[1694021102924,0.18808789,25625.0,25624.0,2.79491927]
[1694021103139,1.21695685,25625.0,25624.0,0.38664527]
[1694021103360,0.43646985,25625.0,25624.0,0.38664527]
[1694021103565,0.44946985,25625.0,25624.0,0.38664527]
[1694021103956,0.44946985,25625.0,25624.0,1.16716327]
[1694021104205,0.18808789,25625.0,25624.0,1.16716327]
[1694021104341,0.18808789,25625.0,25624.0,1.94768127]
[1694021104541,0.18808789,25625.0,25624.0,2.3075351]
[1694021104772,0.20708789,25625.0,25624.0,2.3075351]
[1694021104963,0.20708789,25625.0,25624.0,2.82595927]
[1694021105180,0.04518789,25625.0,25624.0,2.82523927]
[1694021105384,0.04518789,25625.0,25624.0,2.84095927]
[1694021105595,0.04518789,25625.0,25624.0,2.83621927]
[1694021105744,0.04518789,25625.0,25624.0,2.84209927]
[1694021105953,0.04518789,25625.0,25624.0,3.22868454]
[1694021106249,0.03218789,25625.0,25624.0,3.20912454]
[1694021106454,0.03218789,25625.0,25624.0,3.20696454]
[1694021106666,0.03218789,25625.0,25624.0,3.20084454]
[1694021106864,0.04518789,25625.0,25624.0,2.80427927]
[1694021107068,0.04518789,25625.0,25624.0,2.80013927]
[1694021107304,0.04518789,25625.0,25624.0,2.80517927]
[1694021107491,0.04518789,25625.0,25624.0,2.81069927]
[1694021107707,0.04518789,25625.0,25624.0,2.81903927]
[1694021107920,0.04518789,25625.0,25624.0,3.03311385]
[1694021108116,0.04518789,25625.0,25624.0,3.03647385]
[1694021108313,0.04518789,25625.0,25624.0,3.61083727]
[1694021108521,0.04518789,25625.0,25624.0,3.60153727]
[1694021108722,0.04518789,25625.0,25624.0,3.58983727]
[1694021108920,0.04518789,25625.0,25624.0,3.58827727]
[1694021109124,0.04518789,25625.0,25624.0,3.58785727]
[1694021109336,0.04518789,25625.0,25624.0,3.58263727]
[1694021109552,0.04518789,25625.0,25624.0,3.58251727]
[1694021109763,0.04518789,25625.0,25624.0,3.58215727]
[1694021109968,0.04518789,25625.0,25624.0,3.58317727]
[1694021110172,0.04518789,25625.0,25624.0,3.58137727]
[1694021110374,0.04518789,25625.0,25624.0,3.58221727]
[1694021110573,0.04518789,25625.0,25624.0,3.58281727]
[1694021110802,0.04518789,25625.0,25624.0,3.96940254]
[1694021111017,0.04518789,25625.0,25624.0,3.97192254]
[1694021111216,0.04518789,25625.0,25624.0,3.97312254]
[1694021111482,0.04518789,25625.0,25624.0,3.96928254]
[1694021111683,0.04518789,25625.0,25624.0,3.97144254]
[1694021111916,0.04518789,25625.0,25624.0,3.97228254]
[1694021112117,0.04518789,25625.0,25624.0,3.97084254]
[1694021112320,0.04518789,25625.0,25624.0,3.96592254]
[1694021112467,0.04518789,25625.0,25624.0,3.18510454]
[1694021112676,0.04518789,25625.0,25624.0,3.18828454]
[1694021112878,0.04518789,25625.0,25624.0,3.19032454]
[1694021113101,0.04518789,25625.0,25624.0,3.59397727]
[1694021113292,0.04518789,25625.0,25624.0,3.60705727]
[1694021113533,0.04518789,25625.0,25624.0,4.40047727]
[1694021113696,0.04518789,25625.0,25624.0,5.57193527]
[1694021113871,0.032,25625.0,25624.0,5.60625527]
[1694021114137,0.032,25625.0,25624.0,6.16304054]
[1694021114272,0.0196,25628.0,25626.0,3.533628]
[1694021114470,0.0196,25628.0,25627.0,2.11079727]
[1694021114674,0.0196,25628.0,25627.0,3.18030327]
[1694021114876,0.0196,25628.0,25627.0,3.94956927]
[1694021115148,0.0196,25628.0,25627.0,4.18675454]
[1694021115322,0.0196,25628.0,25627.0,4.17811454]
[1694021115524,0.0196,25628.0,25627.0,4.16017454]
[1694021115736,0.0196,25628.0,25627.0,4.15735454]
[1694021115927,0.0196,25628.0,25627.0,4.15759454]
[1694021116207,0.032291,25628.0,25627.0,4.15765454]
[1694021116347,0.032291,25628.0,25627.0,4.19207454]
[1694021116571,0.032291,25628.0,25627.0,4.19969454]
[1694021116770,0.0196,25628.0,25627.0,4.19963454]
[1694021116973,0.0196,25628.0,25627.0,4.19753454]
[1694021117181,0.0196,25628.0,25627.0,4.19981454]
[1694021117461,0.0196,25628.0,25627.0,4.21127454]
[1694021117694,0.0196,25635.0,25634.0,0.4718]
[1694021118003,0.19352746,25642.0,25637.0,0.06]
[1694021118150,0.1,25642.0,25640.0,0.38664527]
[1694021118336,0.1,25642.0,25640.0,0.54130338]
[1694021118546,0.1,25642.0,25641.0,0.15465811]
[1694021118972,0.01095954,25641.0,25640.0,0.38664527]
[1694021119394,0.1,25642.0,25640.0,0.38664527]
[1694021119395,0.879986,25642.0,25640.0,0.38664527]
[1694021119600,0.1,25642.0,25640.0,0.38664527]
[1694021119816,0.1,25642.0,25641.0,0.38664527]
[1694021120014,0.1,25642.0,25641.0,2.66854338]
[1694021120228,0.1,25642.0,25641.0,3.31956527]
[1694021120440,0.1,25642.0,25641.0,3.54163054]
[1694021120645,0.1,25642.0,25641.0,3.53959054]
[1694021120849,0.1,25642.0,25641.0,4.11165054]
[1694021121040,0.1,25642.0,25641.0,4.11057054]
[1694021121254,0.1,25642.0,25641.0,4.11093054]
[1694021121472,0.1,25642.0,25641.0,4.13337054]
[1694021121739,0.1,25642.0,25641.0,3.70177054]
[1694021121930,0.0196,25647.0,25644.0,0.06]
[1694021122134,0.0196,25647.0,25646.0,0.79844527]
[1694021122343,0.0196,25647.0,25646.0,2.30634127]
[1694021122551,0.0196,25647.0,25646.0,3.17390927]
[1694021122749,0.25148967,25645.0,25643.0,0.1633]
[1694021122964,2.47760467,25647.0,25643.0,0.38664527]
[1694021122965,1.84166867,25644.0,25643.0,0.38664527]
[1694021123176,1.84166867,25644.0,25641.0,0.05]
[1694021123369,0.28185067,25644.0,25642.0,0.38664527]
[1694021123600,0.1633,25644.0,25642.0,0.38664527]
[1694021124204,0.01118149,25643.0,25642.0,1.3637791]
[1694021124417,0.95442049,25643.0,25637.0,0.780107]
[1694021124608,0.11855067,25642.0,25638.0,0.38664527]
[1694021124809,0.89854267,25642.0,25638.0,0.38664527]
[1694021125010,1.67853467,25642.0,25638.0,0.38664527]
[1694021125214,0.779992,25642.0,25638.0,1.16673627]
[1694021125413,0.779992,25642.0,25638.0,1.4394373]
[1694021125846,0.89854267,25642.0,25641.0,0.001]
[1694021126047,2.462954,25642.0,25641.0,0.001]
[1694021126268,2.603254,25642.0,25636.0,0.78014]
[1694021126476,0.11855067,25641.0,25638.0,0.002]
[1694021126681,1.823262,25642.0,25638.0,0.002]
[1694021126906,1.04327,25642.0,25638.0,0.27490323]
[1694021127089,1.04327,25642.0,25639.0,0.38664527]
[1694021127528,2.07192269,25642.0,25639.0,0.38664527]
[1694021128140,2.85191269,25642.0,25639.0,0.38664527]
[1694021128464,2.07392269,25642.0,25639.0,0.38764527]
[1694021129493,0.51396269,25642.0,25639.0,0.38764527]
[1694021129703,0.002,25642.0,25639.0,2.0645423]
[1694021129927,0.002,25642.0,25639.0,2.8466033]
[1694021130151,0.002,25642.0,25640.0,0.06696]
[1694021130857,0.002,25642.0,25641.0,1.16664527]
[1694021130882,0.002,25642.0,25641.0,2.80434527]
[1694021131032,0.002,25642.0,25641.0,2.80332527]
[1694021131173,0.002,25642.0,25641.0,2.01948527]
[1694021131386,0.1659,25643.0,25641.0,0.38664527]
[1694021131605,0.1659,25643.0,25641.0,1.16664527]
[1694021131815,0.002,25642.0,25641.0,1.94664527]
[1694021132008,0.002,25642.0,25641.0,2.72664527]
[1694021132221,0.1659,25643.0,25641.0,2.72664527]
[1694021132650,0.1659,25643.0,25641.0,1.94664527]
[1694021132875,0.1659,25643.0,25641.0,1.95164527]
[1694021133129,0.1659,25643.0,25641.0,0.39164527]
[1694021133130,0.945839,25643.0,25641.0,0.39164527]
[1694021133375,2.505717,25643.0,25641.0,0.39264527]
[1694021133592,2.505717,25643.0,25641.0,0.005]
[1694021133818,2.505717,25643.0,25637.0,1.56021]
[1694021134049,0.11855067,25642.0,25638.0,0.38664527]
[1694021134261,0.779982,25642.0,25638.0,1.16673027]
[1694021134549,1.725778,25643.0,25638.0,1.94682227]
[1694021134797,1.725796,25643.0,25638.0,2.88157238]
[1694021135040,1.725796,25643.0,25638.0,2.72691427]
[1694021135287,1.727796,25643.0,25638.0,2.72691427]
[1694021135824,0.1659,25643.0,25639.0,0.06558]
[1694021136079,0.1679,25643.0,25640.0,1.94669927]
[1694021136901,0.1659,25643.0,25640.0,1.94669927]
[1694021137092,0.1679,25643.0,25640.0,1.94669927]
[1694021137717,0.1679,25643.0,25640.0,3.09177561]
[1694021137916,0.1929,25643.0,25640.0,3.09177561]
[1694021138330,0.1909,25643.0,25640.0,3.09177561]
[1694021138558,0.1909,25643.0,25640.0,2.98973027]
[1694021138764,0.1929,25643.0,25640.0,2.98973027]
[1694021139172,0.01119315,25642.0,25640.0,3.05693027]
[1694021139383,0.01119315,25642.0,25641.0,0.38664527]
[1694021139558,0.01119315,25642.0,25641.0,3.19801054]
[1694021139783,0.01119315,25642.0,25641.0,1.23420527]
[1694021139978,0.01119315,25642.0,25641.0,1.94664527]
[1694021140184,0.01119315,25642.0,25641.0,2.80128527]
[1694021140381,0.01119315,25642.0,25641.0,2.72664527]
[1694021140580,0.01119315,25642.0,25641.0,2.79270527]
[1694021140911,0.01119315,25642.0,25641.0,1.94764527]
[1694021141114,0.01119315,25642.0,25641.0,0.38664527]
[1694021141489,0.01119315,25642.0,25641.0,1.17564527]
[1694021141896,0.01119315,25642.0,25641.0,0.39564527]
[1694021142734,0.01119315,25642.0,25641.0,0.38664527]
[1694021142938,0.01119315,25642.0,25641.0,1.18464527]
[1694021143122,0.01119315,25642.0,25641.0,1.97864527]
[1694021143325,0.01119315,25642.0,25641.0,1.18064527]
[1694021143894,0.01119315,25642.0,25641.0,3.1280166]
[1694021144223,0.01119315,25642.0,25641.0,2.3480166]
[1694021144446,0.01119315,25642.0,25641.0,3.1280166]
[1694021144684,0.01119315,25642.0,25641.0,4.0168566]
[1694021144876,0.01119315,25642.0,25641.0,4.4781766]
[1694021145193,0.025,25643.0,25641.0,3.12878527]
[1694021145507,0.31845055,25643.0,25641.0,1.96964527]
[1694021145707,0.24558632,25642.0,25641.0,0.39564527]
[1694021145912,0.24558632,25642.0,25641.0,0.41764527]
[1694021146118,0.24558632,25642.0,25641.0,0.40864527]
[1694021146538,0.24558632,25642.0,25641.0,0.40464527]
[1694021146724,0.24558632,25642.0,25641.0,0.40864527]
[1694021147141,0.24558632,25642.0,25641.0,0.39564527]
[1694021147759,1.80552632,25642.0,25641.0,0.39564527]
[1694021147984,0.24558632,25642.0,25641.0,0.39564527]
[1694021148194,0.24558632,25642.0,25641.0,1.17564527]
[1694021148621,0.24558632,25642.0,25641.0,1.16464527]
[1694021149504,0.79118695,25642.0,25641.0,0.023]
[1694021149658,2.35112695,25642.0,25641.0,0.023]
[1694021150082,0.01121695,25642.0,25641.0,3.47940338]
[1694021150292,0.01121695,25642.0,25641.0,4.91499054]
[1694021150495,0.25801495,25646.0,25641.0,4.90359054]
[1694021150702,0.25801495,25646.0,25643.0,0.38664527]
[1694021150917,0.25801495,25646.0,25644.0,1.559818]
[1694021151132,0.25801495,25646.0,25645.0,0.38664527]
[1694021151347,0.25801495,25646.0,25645.0,1.16652427]
[1694021151546,0.0196,25647.0,25645.0,0.38664527]
[1694021151547,0.79942,25647.0,25645.0,0.38664527]
[1694021151748,0.0196,25647.0,25645.0,0.38664527]
[1694021151974,0.26825609,25646.0,25645.0,0.38664527]
[1694021152264,0.0196,25647.0,25645.0,0.38664527]
[1694021152579,0.26494468,25646.0,25645.0,1.16652027]
[1694021152797,1.96759096,25648.0,25645.0,1.16652027]
[1694021152999,1.96759096,25648.0,25645.0,1.94639927]
[1694021153000,0.21278631,25647.0,25645.0,1.94639927]
[1694021153431,0.21278631,25647.0,25645.0,1.16652027]
[1694021153649,0.21278631,25647.0,25645.0,1.16752027]
[1694021153866,0.21278631,25647.0,25645.0,1.94739927]
[1694021154091,0.1765,25648.0,25646.0,0.27272873]
[1694021154283,0.0196,25648.0,25647.0,1.94628127]
[1694021154501,0.0196,25648.0,25647.0,2.79905927]
[1694021154722,0.0196,25648.0,25647.0,2.79959927]
[1694021154955,0.0196,25648.0,25647.0,2.79809927]
[1694021155151,0.0196,25648.0,25647.0,3.9031372]
[1694021155361,0.0196,25648.0,25647.0,3.9085972]
[1694021155551,0.0196,25648.0,25647.0,3.9012772]
[1694021155759,0.0196,25648.0,25647.0,3.8998372]
[1694021155992,0.0196,25648.0,25647.0,3.8945572]
[1694021156490,0.02998085,25648.0,25647.0,3.9426972]
[1694021156743,0.02998085,25648.0,25647.0,3.9405972]
[1694021157028,0.02998085,25648.0,25647.0,3.9570372]
[1694021157295,0.02998085,25648.0,25647.0,3.9387972]
[1694021157296,0.0196,25648.0,25647.0,3.9387972]
[1694021157484,0.0196,25648.0,25647.0,4.5190172]
[1694021157682,0.0196,25648.0,25647.0,4.6469772]
[1694021157885,0.02999393,25648.0,25647.0,4.6714372]
[1694021158107,0.0196,25648.0,25647.0,4.6957772]
[1694021158301,0.0196,25648.0,25647.0,4.7016572]
[1694021158529,0.0196,25648.0,25647.0,4.7017172]
[1694021158726,0.0196,25648.0,25647.0,4.8498572]
[1694021158932,0.0196,25648.0,25647.0,4.6962572]
[1694021159143,0.0196,25648.0,25647.0,4.6988972]
[1694021159353,0.0196,25648.0,25647.0,4.6714172]
[1694021159574,0.0196,25648.0,25647.0,4.36593727]
[1694021159785,0.0196,25648.0,25647.0,3.96145727]
[1694021160024,0.0196,25648.0,25647.0,3.94579727]
[1694021160229,0.0196,25648.0,25647.0,3.94555727]
[1694021160443,0.0196,25648.0,25647.0,3.94609727]
[1694021160626,0.0299953,25648.0,25647.0,4.07016886]
[1694021160837,0.0299953,25648.0,25647.0,4.50764886]
[1694021161045,0.0196,25648.0,25647.0,4.51286886]
[1694021161260,0.0196,25648.0,25647.0,4.48646886]
[1694021161458,0.0196,25648.0,25647.0,3.94267727]
[1694021161668,0.0196,25648.0,25647.0,3.96391727]
[1694021161879,0.0196,25648.0,25647.0,3.95497727]
[1694021162105,0.26728937,25648.0,25647.0,0.43664527]
[1694021162320,0.26728937,25648.0,25647.0,1.21646327]
[1694021162620,0.0196,25648.0,25647.0,1.99628127]
[1694021162797,0.03002215,25648.0,25647.0,2.77609927]
[1694021162997,0.03002215,25648.0,25647.0,4.03688254]
[1694021163221,0.03002215,25648.0,25647.0,3.64729727]
[1694021163417,0.03002215,25648.0,25647.0,3.64651727]
[1694021163628,0.03002215,25648.0,25647.0,3.80315827]
[1694021163834,0.03002215,25648.0,25647.0,3.79811827]
[1694021164051,0.03002215,25648.0,25647.0,2.84449927]
[1694021164264,0.3065269,25648.0,25647.0,1.99628127]
[1694021164484,0.3065269,25648.0,25647.0,0.43664527]
[1694021164938,0.3065269,25648.0,25647.0,1.21646327]
[1694021165148,0.3065269,25648.0,25647.0,2.77609927]
[1694021165785,0.03002215,25648.0,25647.0,3.16274454]
[1694021166004,0.03002215,25648.0,25647.0,4.04915323]
[1694021166280,0.28121901,25648.0,25647.0,2.09615196]
[1694021166491,1.06100601,25648.0,25647.0,0.46751596]
[1694021166701,2.62058001,25648.0,25647.0,0.46751596]
[1694021166941,2.62058001,25648.0,25647.0,0.05]
[1694021166942,1.58959615,25648.0,25647.0,0.05]
[1694021167139,2.69268315,25648.0,25647.0,0.05]
[1694021167351,3.47247015,25648.0,25647.0,0.05]
[1694021167967,3.47247015,25648.0,25647.0,0.025]
[1694021168179,0.1,25647.0,25642.0,0.779966]
[1694021168389,1.67827667,25646.0,25643.0,0.38164527]
[1694021168606,1.559726,25646.0,25643.0,0.38164527]
[1694021168839,2.339589,25646.0,25643.0,0.38164527]
[1694021169270,0.779863,25646.0,25643.0,0.38164527]
[1694021169497,1.2878008,25647.0,25643.0,2.72145827]
[1694021169498,0.01032674,25645.0,25643.0,2.72145827]
[1694021169698,0.01032674,25645.0,25643.0,3.58293727]
[1694021169922,0.01032674,25645.0,25643.0,3.50139727]
[1694021170146,0.4079578,25647.0,25643.0,3.51039727]
[1694021170352,0.4079578,25647.0,25644.0,0.06642]
[1694021170560,1.9675948,25647.0,25645.0,0.38664527]
[1694021170769,0.23094606,25646.0,25645.0,0.38664527]
[1694021171017,0.23094606,25646.0,25645.0,1.16652027]
[1694021171242,1.01079406,25646.0,25645.0,0.38664527]
[1694021171474,2.63341691,25646.0,25643.0,0.006]
[1694021171683,1.098437,25647.0,25644.0,0.48664527]
[1694021171895,0.28244803,25646.0,25645.0,1.560758]
[1694021172097,0.1553,25647.0,25645.0,2.04740327]
[1694021172299,0.1553,25647.0,25646.0,0.38664527]
[1694021172511,0.1553,25647.0,25646.0,1.26649327]
[1694021173343,0.1553,25647.0,25646.0,0.48664527]
[1694021173344,0.45155453,25647.0,25646.0,0.48664527]
[1694021174006,0.45155453,25647.0,25646.0,0.48764527]
[1694021174225,2.79100853,25647.0,25646.0,0.101]
[1694021174422,3.0473219,25647.0,25646.0,0.101]
[1694021174641,3.75040542,25647.0,25646.0,0.101]
[1694021174873,4.48372412,25647.0,25646.0,0.101]
[1694021175134,4.53022342,25647.0,25646.0,0.101]
[1694021175342,4.61022342,25647.0,25646.0,0.106]
[1694021175554,4.37769,25647.0,25646.0,0.106]
[1694021175761,4.45062928,25647.0,25646.0,0.106]
[1694021175977,4.21439,25647.0,25646.0,0.101]
[1694021176168,4.21639,25647.0,25646.0,0.101]
[1694021176614,4.21839,25647.0,25646.0,0.102]
[1694021176832,0.16,25643.0,25635.0,0.0753]
[1694021177059,0.09342861,25639.0,25637.0,0.48664527]
[1694021177302,0.09342861,25639.0,25632.0,1.030252]
[1694021177303,1.84203467,25638.0,25636.0,0.38664527]
[1694021177490,2.78472667,25638.0,25636.0,0.38664527]
[1694021177914,1.886084,25638.0,25636.0,0.38664527]
[1694021178121,1.886084,25638.0,25636.0,0.38864527]
[1694021178332,1.81621261,25638.0,25636.0,0.38864527]
[1694021178544,0.29319963,25637.0,25636.0,0.38864527]
[1694021178744,0.29319963,25637.0,25636.0,0.41364527]
[1694021179373,0.29319963,25637.0,25636.0,0.38664527]
[1694021179786,0.29319963,25637.0,25636.0,0.40664527]
[1694021179986,0.29319963,25637.0,25636.0,0.38664527]
[1694021180303,0.29419963,25637.0,25636.0,2.75210127]
[1694021180515,0.29419963,25637.0,25636.0,1.97194927]
[1694021180720,0.29519963,25637.0,25636.0,1.99694927]
[1694021180953,0.29519963,25637.0,25636.0,1.21679727]
[1694021182969,0.29519963,25637.0,25636.0,0.43664527]
[1694021183214,1.07532163,25637.0,25636.0,0.43664527]
[1694021184283,3.41568763,25637.0,25636.0,0.05]
[1694021184500,3.13256959,25637.0,25636.0,0.05]
[1694021184723,3.4357125,25637.0,25636.0,0.05]
[1694021185130,3.4357125,25637.0,25636.0,0.025]
[1694021185131,3.4347125,25637.0,25636.0,0.025]
[1694021185599,3.40193818,25637.0,25636.0,0.002]
[1694021186043,3.40193818,25637.0,25636.0,0.014]
[1694021186044,3.40293818,25637.0,25636.0,0.014]
[1694021186222,3.40293818,25637.0,25636.0,0.002]
[1694021186223,3.40193818,25637.0,25636.0,0.002]
[1694021186438,3.70670345,25637.0,25636.0,0.004]
[1694021186685,3.70670345,25637.0,25636.0,0.002]
[1694021186686,3.69170345,25637.0,25636.0,0.002]
[1694021186904,3.40593818,25637.0,25636.0,0.002]
[1694021187106,3.42093818,25637.0,25636.0,0.004]
[1694021187518,3.32756959,25637.0,25636.0,0.004]
[1694021189598,3.30756959,25637.0,25636.0,0.004]
[1694021190011,3.24756959,25637.0,25636.0,0.004]
[1694021191271,4.63421486,25637.0,25636.0,0.004]
[1694021191499,5.02758345,25637.0,25636.0,0.004]
[1694021191701,4.93421486,25637.0,25636.0,0.004]
[1694021192320,4.91521486,25637.0,25636.0,0.002]
[1694021192744,3.72993375,25637.0,25636.0,0.004]
[1694021192999,3.70593375,25637.0,25636.0,0.002]
[1694021193420,0.06,25636.0,25633.0,0.248]
[1694021193567,0.780183,25635.0,25633.0,0.63464527]
[1694021193979,1.560366,25635.0,25633.0,0.63464527]
[1694021194830,1.581366,25635.0,25633.0,0.63564527]
[1694021195561,1.581366,25635.0,25633.0,0.63764527]
[1694021196178,1.581366,25635.0,25633.0,0.63564527]
[1694021196775,1.605366,25635.0,25633.0,0.63764527]
[1694021197021,0.045,25635.0,25634.0,0.38664527]
[1694021197223,0.045,25635.0,25634.0,1.24377827]
[1694021197428,0.045,25635.0,25634.0,2.01379127]
[1694021197626,0.0576467,25635.0,25634.0,2.72728427]
[1694021197833,0.0366467,25635.0,25634.0,2.72728427]
[1694021198300,0.0516467,25635.0,25634.0,2.72828427]
[1694021198508,0.0276467,25635.0,25634.0,2.72828427]
[1694021198859,0.0476467,25635.0,25634.0,2.72828427]
[1694021199059,0.0276467,25635.0,25634.0,2.72828427]
[1694021199233,0.0296467,25635.0,25634.0,2.75228427]
[1694021199657,0.0146467,25635.0,25634.0,2.75128427]
[1694021199863,0.0156467,25635.0,25634.0,2.76228427]
[1694021200445,0.0146467,25635.0,25634.0,2.75128427]
[1694021200670,0.0166467,25635.0,25634.0,2.77528427]
[1694021201124,0.004,25635.0,25634.0,4.05032254]
[1694021201332,0.004,25635.0,25634.0,4.05290254]
[1694021201536,0.01664921,25635.0,25634.0,3.66595727]
[1694021201785,0.01664921,25635.0,25634.0,3.66601727]
[1694021202020,0.01664921,25635.0,25634.0,3.66925727]
[1694021202222,0.01664921,25635.0,25634.0,3.66763727]
[1694021202436,0.01664921,25635.0,25634.0,3.65449727]
[1694021202634,0.01664921,25635.0,25634.0,3.65293727]
[1694021202849,0.01664921,25635.0,25634.0,3.65185727]
[1694021203058,0.01664921,25635.0,25634.0,3.65359727]
[1694021203253,0.01664921,25635.0,25634.0,3.65353727]
[1694021203475,0.01664921,25635.0,25634.0,3.65359727]
[1694021203680,0.01664921,25635.0,25634.0,3.64567727]
[1694021203883,0.01664921,25635.0,25634.0,3.64645727]
[1694021204087,0.01664921,25635.0,25634.0,3.64639727]
[1694021204295,0.01664921,25635.0,25634.0,3.68197727]
[1694021204556,0.01664921,25635.0,25634.0,3.68083727]
[1694021204778,0.004,25635.0,25634.0,3.68551727]
[1694021204967,0.004,25635.0,25634.0,3.68617727]
[1694021205091,0.01671235,25635.0,25634.0,3.68341727]
[1694021205307,0.01671235,25635.0,25634.0,3.68317727]
[1694021205496,0.01671235,25635.0,25634.0,3.68221727]
[1694021205700,0.01671235,25635.0,25634.0,3.68071727]
[1694021205920,0.01671235,25635.0,25634.0,3.68053727]
[1694021206342,0.01671235,25635.0,25634.0,3.68059727]
[1694021206489,0.01671235,25635.0,25634.0,3.66853727]
[1694021206694,0.01671235,25635.0,25634.0,3.66601727]
[1694021206904,0.01671235,25635.0,25634.0,3.66403727]
[1694021207111,0.01671235,25635.0,25634.0,3.74409727]
[1694021207325,0.01671235,25635.0,25634.0,4.48508254]
[1694021207524,0.01671235,25635.0,25634.0,4.48580254]
[1694021207740,0.01671235,25635.0,25634.0,4.49078254]
[1694021207956,0.01671235,25635.0,25634.0,4.49000254]
[1694021208179,0.01671235,25635.0,25634.0,4.48910254]
[1694021208376,0.01671235,25635.0,25634.0,4.26889727]
[1694021208598,0.01671235,25635.0,25634.0,4.26457727]
[1694021208810,0.004,25635.0,25634.0,4.29265727]
[1694021209039,0.004,25635.0,25634.0,5.89893271]
[1694021209263,0.28361552,25643.0,25636.0,0.18]
[1694021209615,0.28361552,25643.0,25639.0,0.38664527]
[1694021209823,0.9858,25644.0,25640.0,3.27475811]
[1694021210027,0.9858,25644.0,25641.0,0.38664527]
[1694021210249,0.9858,25644.0,25642.0,2.33991]
[1694021210540,1.79445788,25645.0,25643.0,0.38664527]
[1694021210743,1.79445788,25645.0,25643.0,1.16657927]
[1694021211215,0.23467288,25645.0,25643.0,1.16657927]
[1694021211428,0.23467288,25645.0,25643.0,2.72645727]
[1694021211639,0.29011245,25646.0,25643.0,2.72645727]
[1694021211841,0.29011245,25646.0,25643.0,3.50639627]
[1694021212059,0.005,25644.0,25643.0,3.50639627]
[1694021212261,0.001,25644.0,25643.0,3.89304154]
[1694021212482,0.001,25644.0,25643.0,3.57341627]
[1694021212697,0.014,25645.0,25643.0,3.50739627]
[1694021212804,0.29011245,25646.0,25643.0,3.50639627]
[1694021213000,0.30211245,25646.0,25643.0,3.50739627]
[1694021213215,0.31911245,25646.0,25643.0,3.50939627]
[1694021213428,0.29011245,25646.0,25643.0,3.7862621]
[1694021213629,0.25566859,25647.0,25643.0,3.8571221]
[1694021213852,0.006,25644.0,25643.0,3.8637221]
[1694021214054,0.006,25644.0,25643.0,3.58301627]
[1694021214264,0.006,25644.0,25643.0,3.58973627]
[1694021214477,0.006,25644.0,25643.0,3.59303627]
[1694021214690,0.006,25644.0,25643.0,3.59633627]
[1694021214905,0.006,25644.0,25643.0,3.59057627]
[1694021215129,0.005,25644.0,25643.0,3.59105627]
[1694021215325,0.02484316,25646.0,25643.0,3.59187627]
[1694021215538,0.02484316,25646.0,25643.0,3.59145627]
[1694021215742,0.02984316,25646.0,25643.0,3.59077627]
[1694021215949,0.02984316,25646.0,25644.0,0.0663]
[1694021216142,0.02984316,25646.0,25645.0,2.72628227]
[1694021216353,0.01284316,25646.0,25645.0,3.50616127]
[1694021216612,0.01284316,25646.0,25645.0,3.57750127]
[1694021216790,0.01284316,25646.0,25645.0,3.57624127]
[1694021216974,0.47947512,25648.0,25645.0,3.50616127]
[1694021217238,0.47947512,25648.0,25645.0,3.50916127]
[1694021217632,0.47947512,25648.0,25645.0,3.70578825]
[1694021217633,0.18,25648.0,25645.0,3.70578825]
[1694021217834,0.18,25648.0,25646.0,0.06804]
[1694021218045,0.0196,25648.0,25647.0,2.72609927]
[1694021218882,0.0196,25648.0,25647.0,1.94628127]